bitfinex/quotes_BTCUSD_20220212
["timestamp","ask_amount","ask_price","bid_price","bid_amount"]
[1644635137568,0.31116759,42458.0,42457.0,0.32972115]
[1644635137971,0.31110104,42458.0,42457.0,0.32972115]
[1644635138170,0.31110104,42458.0,42457.0,0.00030515]
[1644635138372,0.31110104,42458.0,42457.0,0.32972115]
[1644635139081,0.31110104,42458.0,42457.0,0.00030515]
[1644635139375,0.31110104,42458.0,42457.0,0.00824215]
[1644635139572,0.31110104,42458.0,42457.0,0.32972115]
[1644635140628,0.31110104,42458.0,42457.0,0.00030515]
[1644635140828,0.31110104,42458.0,42457.0,0.32472115]
[1644635142829,0.31110104,42458.0,42457.0,0.32462911]
[1644635143029,0.31110104,42458.0,42457.0,0.329456]
[1644635143831,0.06411466,42458.0,42456.0,0.501]
[1644635145663,0.06507336,42458.0,42456.0,0.501]
[1644635146167,0.06507336,42458.0,42457.0,0.329556]
[1644635146865,0.06507336,42458.0,42457.0,0.0001]
[1644635148117,0.0009587,42458.0,42457.0,0.0001]
[1644635149318,0.08823245,42458.0,42457.0,0.0001]
[1644635150321,0.08727375,42458.0,42457.0,0.0001]
[1644635150919,0.84639638,42463.0,42457.0,0.0001]
[1644635151778,0.74639638,42463.0,42457.0,0.0001]
[1644635151970,0.07188728,42458.0,42457.0,0.0001]
[1644635152773,0.74639638,42463.0,42457.0,0.0001]
[1644635153776,0.23951918,42458.0,42457.0,0.0001]
[1644635154175,0.23951918,42458.0,42457.0,0.329556]
[1644635155177,0.23951918,42458.0,42457.0,0.0001]
[1644635155622,0.23951918,42458.0,42457.0,0.329556]
[1644635156026,0.23951918,42458.0,42457.0,0.0001]
[1644635156824,0.23951918,42458.0,42457.0,0.00030482]
[1644635160268,0.23951918,42458.0,42457.0,0.32976082]
[1644635161667,0.23951918,42458.0,42457.0,0.20034595]
[1644635161870,0.23951918,42458.0,42457.0,0.00030482]
[1644635161871,0.5005411,42458.0,42457.0,0.00030482]
[1644635162871,0.23951918,42458.0,42457.0,0.32976082]
[1644635163317,0.23951918,42458.0,42457.0,0.00030482]
[1644635163519,0.23951918,42458.0,42457.0,0.32976082]
[1644635163719,0.23951918,42458.0,42457.0,0.00030482]
[1644635164123,1.06926751,42458.0,42457.0,0.00030482]
[1644635164321,1.01897518,42458.0,42457.0,0.00030482]
[1644635164528,0.96926589,42458.0,42457.0,0.00030482]
[1644635164920,0.71897518,42458.0,42457.0,0.00030482]
[1644635165120,1.15559264,42458.0,42457.0,0.00030482]
[1644635166320,1.70611068,42458.0,42457.0,0.00030482]
[1644635167871,1.45059264,42458.0,42457.0,0.00030482]
[1644635171718,1.15059264,42458.0,42457.0,0.00030482]
[1644635173819,1.45861092,42458.0,42457.0,0.00030482]
[1644635174021,0.979456,42457.0,42456.0,0.41080349]
[1644635174273,0.64848024,42457.0,42456.0,0.41080349]
[1644635175668,0.97793624,42457.0,42456.0,0.41080349]
[1644635175868,0.64848024,42457.0,42456.0,0.41080349]
[1644635176269,0.97793624,42457.0,42456.0,0.41080349]
[1644635176470,0.60851688,42457.0,42456.0,0.41080349]
[1644635176669,0.44812276,42457.0,42456.0,0.41080349]
[1644635176869,0.77757876,42457.0,42456.0,0.41080349]
[1644635177669,0.60851884,42457.0,42456.0,0.41080349]
[1644635178119,0.77757876,42457.0,42456.0,0.41080349]
[1644635178320,0.44812276,42457.0,42456.0,0.41080349]
[1644635178521,0.80885573,42457.0,42456.0,0.41080349]
[1644635178722,0.44812276,42457.0,42456.0,0.41080349]
[1644635179321,0.44812276,42457.0,42456.0,0.41090349]
[1644635179526,0.77757876,42457.0,42456.0,0.41090349]
[1644635179723,0.6484544,42457.0,42456.0,0.41090349]
[1644635180528,0.65040192,42457.0,42456.0,0.41090349]
[1644635182176,0.81079546,42457.0,42456.0,0.41090349]
[1644635182578,0.65040192,42457.0,42456.0,0.41090349]
[1644635183677,0.45007028,42457.0,42456.0,0.17689456]
[1644635183877,0.61046382,42457.0,42456.0,0.17689456]
[1644635184077,0.65,42456.0,42454.0,0.00054941]
[1644635184279,0.29807921,42455.0,42454.0,0.00054941]
[1644635184477,0.34807921,42455.0,42454.0,0.00054941]
[1644635184683,0.39807921,42455.0,42443.0,0.1701]
[1644635184878,0.49807921,42455.0,42452.0,0.00054942]
[1644635185918,0.49807921,42455.0,42443.0,0.59167553]
[1644635186117,0.49807921,42455.0,42451.0,0.00054942]
[1644635186319,0.21992425,42452.0,42451.0,0.00054942]
[1644635186718,0.31992425,42452.0,42451.0,0.00054942]
[1644635186919,0.68560496,42452.0,42451.0,0.00054942]
[1644635187120,0.68560496,42452.0,42443.0,0.47157553]
[1644635187321,0.68560496,42452.0,42449.0,0.00054943]
[1644635187524,0.0665773,42450.0,42449.0,0.00054943]
[1644635188326,0.0665773,42450.0,42443.0,0.21631064]
[1644635188524,0.0665773,42450.0,42447.0,0.00054944]
[1644635188923,0.0665773,42450.0,42448.0,0.329456]
[1644635189123,0.0665773,42450.0,42447.0,0.00054944]
[1644635189578,0.0665773,42450.0,42446.0,0.0001]
[1644635189879,0.0665773,42450.0,42446.0,0.00085341]
[1644635190076,0.0665773,42450.0,42446.0,0.00064945]
[1644635190278,0.0665773,42450.0,42446.0,0.00085341]
[1644635190478,0.0665773,42450.0,42446.0,0.00054945]
[1644635190678,0.0665773,42450.0,42444.0,0.00030396]
[1644635190881,0.0665773,42450.0,42446.0,0.00054945]
[1644635191879,0.0665773,42450.0,42444.0,0.00030396]
[1644635192179,0.0665773,42450.0,42446.0,0.00054945]
[1644635193217,0.0665773,42450.0,42444.0,0.00030396]
[1644635193421,0.0665773,42450.0,42446.0,0.00054945]
[1644635194419,0.0665773,42450.0,42444.0,0.00030396]
[1644635194620,0.0665773,42450.0,42446.0,0.00054945]
[1644635195020,0.00092444,42449.0,42446.0,0.00054945]
[1644635195624,0.329456,42448.0,42444.0,0.00030396]
[1644635195843,0.0473,42447.0,42445.0,0.00054945]
[1644635196026,0.329456,42446.0,42445.0,0.00054945]
[1644635196322,0.376756,42446.0,42445.0,0.00054945]
[1644635196620,0.86106736,42446.0,42445.0,0.00054945]
[1644635196905,0.23873658,42445.0,42439.0,0.00030396]
[1644635197105,0.05893604,42444.0,42439.0,0.00030396]
[1644635197504,0.05893604,42444.0,42438.0,0.0001]
[1644635197704,0.05893604,42444.0,42438.0,0.00030396]
[1644635197906,0.06342178,42443.0,42438.0,0.0001]
[1644635198105,0.06342178,42443.0,42438.0,0.00030396]
[1644635198305,0.06342178,42443.0,42438.0,0.0001]
[1644635198505,0.06342178,42443.0,42438.0,0.00030396]
[1644635198707,0.06342178,42443.0,42438.0,0.0001]
[1644635198906,0.06342178,42443.0,42438.0,0.00030396]
[1644635199105,0.06342178,42443.0,42439.0,0.329456]
[1644635199306,0.06342178,42443.0,42440.0,0.0001]
[1644635199708,0.06342178,42443.0,42439.0,0.00020396]
[1644635200006,0.06342178,42443.0,42437.0,0.20014113]
[1644635200206,0.06342178,42443.0,42438.0,0.0001]
[1644635200409,0.06342178,42443.0,42437.0,0.0001]
[1644635200638,0.06342178,42443.0,42438.0,0.00054906]
[1644635200836,0.06342178,42443.0,42438.0,0.00075302]
[1644635201241,0.24,42444.0,42439.0,0.329456]
[1644635201440,0.24,42444.0,42441.0,0.329456]
[1644635201637,0.24,42444.0,42442.0,0.0474]
[1644635201838,0.24,42444.0,42443.0,0.143656]
[1644635202038,0.24,42444.0,42443.0,0.191056]
[1644635202238,0.24,42444.0,42443.0,0.65950797]
[1644635202438,0.24,42444.0,42443.0,0.73642165]
[1644635202841,0.24,42444.0,42443.0,0.48625766]
[1644635203140,0.24,42444.0,42443.0,0.48646162]
[1644635203339,0.24,42444.0,42443.0,0.73652901]
[1644635203746,0.00192461,42446.0,42445.0,0.18105719]
[1644635203941,0.00192461,42446.0,42445.0,0.32533519]
[1644635204143,0.00192461,42446.0,42445.0,0.32553915]
[1644635204379,0.46053367,42458.0,42456.0,0.18656519]
[1644635204579,0.08312378,42457.0,42456.0,0.18656519]
[1644635206081,0.06812378,42457.0,42456.0,0.18656519]
[1644635206282,0.45051804,42459.0,42456.0,0.18656519]
[1644635206482,0.25051804,42459.0,42456.0,0.18656519]
[1644635206683,0.25051804,42459.0,42457.0,0.144134]
[1644635206880,0.25051804,42464.0,42457.0,0.144134]
[1644635207080,0.55051804,42465.0,42457.0,0.144134]
[1644635207480,0.3,42465.0,42457.0,0.144134]
[1644635207685,0.55051804,42465.0,42457.0,0.144134]
[1644635207881,0.07976224,42462.0,42457.0,0.144134]
[1644635208829,0.07976224,42462.0,42457.0,0.0473]
[1644635209626,0.07976224,42462.0,42457.0,0.0474]
[1644635209828,0.31976224,42462.0,42457.0,0.0474]
[1644635210228,0.31976224,42462.0,42459.0,0.096825]
[1644635210428,0.31976224,42462.0,42460.0,0.0001]
[1644635210626,0.31976224,42462.0,42459.0,0.0473]
[1644635210826,0.31976224,42462.0,42460.0,0.096822]
[1644635211026,0.31976224,42462.0,42461.0,0.0001]
[1644635211530,0.31976224,42462.0,42461.0,0.096819]
[1644635211531,0.31476224,42462.0,42461.0,0.096819]
[1644635211777,0.31476224,42462.0,42461.0,0.096919]
[1644635211977,0.31476224,42462.0,42461.0,0.0001]
[1644635212172,0.31476224,42462.0,42458.0,0.00132819]
[1644635213373,0.30976224,42462.0,42458.0,0.00132819]
[1644635214176,0.30976224,42462.0,42459.0,0.096825]
[1644635214375,0.30976224,42462.0,42460.0,0.0001]
[1644635214574,0.30976224,42462.0,42458.0,0.00132819]
[1644635215519,0.30976224,42462.0,42457.0,0.0001]
[1644635216520,0.28713358,42462.0,42457.0,0.0001]
[1644635218524,0.28713358,42462.0,42458.0,0.096829]
[1644635218722,0.28713358,42462.0,42459.0,0.0001]
[1644635218922,0.28713358,42462.0,42460.0,0.096822]
[1644635219121,0.28713358,42462.0,42461.0,0.096919]
[1644635221376,0.28713358,42462.0,42461.0,0.0001]
[1644635221577,0.28713358,42462.0,42458.0,0.0001]
[1644635222175,0.24,42462.0,42458.0,0.0001]
[1644635222377,0.24,42462.0,42457.0,0.0001]
[1644635223428,0.32599314,42462.0,42457.0,0.0001]
[1644635225430,0.24,42462.0,42457.0,0.0001]
[1644635226231,0.24,42462.0,42457.0,0.09693]
[1644635226434,0.24,42462.0,42459.0,0.096825]
[1644635226632,0.24,42462.0,42460.0,0.34126759]
[1644635226876,0.24,42462.0,42461.0,0.096919]
[1644635227079,0.24,42462.0,42461.0,0.37732912]
[1644635227576,0.24,42462.0,42461.0,0.42462912]
[1644635227776,0.24,42462.0,42461.0,0.144219]
[1644635230520,0.24,42462.0,42461.0,0.1454055]
[1644635231521,0.24,42462.0,42461.0,0.0485865]
[1644635231724,0.24,42462.0,42461.0,0.1453055]
[1644635231920,0.24,42462.0,42461.0,0.1454055]
[1644635232120,0.24,42462.0,42461.0,0.0485865]
[1644635232323,0.24,42462.0,42461.0,0.1453055]
[1644635232525,0.24,42462.0,42461.0,0.1454055]
[1644635234474,0.28878088,42467.0,42464.0,0.48011394]
[1644635234675,0.25051804,42469.0,42464.0,0.48011394]
[1644635234676,0.20027118,42468.0,42465.0,0.0001]
[1644635235577,0.20027118,42469.0,42465.0,0.0001]
[1644635236975,0.08049845,42467.0,42465.0,0.0001]
[1644635238723,0.52975118,42466.0,42465.0,4e-05]
[1644635238923,0.32948,42466.0,42465.0,4e-05]
[1644635239323,0.58240078,42466.0,42465.0,4e-05]
[1644635240525,0.83291882,42466.0,42465.0,4e-05]
[1644635241126,0.98291882,42466.0,42465.0,4e-05]
[1644635242193,0.73240078,42466.0,42465.0,4e-05]
[1644635243192,0.97240078,42466.0,42465.0,4e-05]
[1644635244395,1.11177526,42466.0,42465.0,4e-05]
[1644635245198,0.97240078,42466.0,42465.0,4e-05]
[1644635245827,1.11176966,42466.0,42465.0,4e-05]
[1644635248333,1.32308414,42466.0,42465.0,4e-05]
[1644635249579,1.32310835,42466.0,42465.0,4e-05]
[1644635251279,1.07018757,42466.0,42465.0,4e-05]
[1644635251681,0.24,42466.0,42465.0,4e-05]
[1644635251879,0.49047893,42466.0,42465.0,4e-05]
[1644635252280,0.81995893,42466.0,42465.0,4e-05]
[1644635253466,0.49047893,42466.0,42465.0,4e-05]
[1644635253666,0.24,42466.0,42465.0,4e-05]
[1644635254870,0.81995893,42466.0,42465.0,4e-05]
[1644635255071,0.56948,42466.0,42465.0,4e-05]
[1644635255271,0.64047893,42466.0,42465.0,4e-05]
[1644635258875,0.39,42466.0,42465.0,4e-05]
[1644635259075,0.64047893,42466.0,42465.0,4e-05]
[1644635259273,0.39,42466.0,42465.0,4e-05]
[1644635259675,0.29,42466.0,42465.0,4e-05]
[1644635259875,0.39,42466.0,42465.0,4e-05]
[1644635260075,0.64047893,42466.0,42465.0,4e-05]
[1644635260525,0.49047893,42466.0,42465.0,4e-05]
[1644635260728,0.24,42466.0,42465.0,4e-05]
[1644635261532,0.24,42466.0,42465.0,0.096844]
[1644635262929,0.24,42466.0,42465.0,0.071844]
[1644635264282,0.24,42466.0,42464.0,0.83056243]
[1644635264478,0.07344475,42471.0,42470.0,0.29458845]
[1644635264778,0.00054884,42471.0,42470.0,0.29458845]
[1644635265177,0.25062858,42473.0,42470.0,0.29458845]
[1644635265379,0.25093647,42473.0,42470.0,0.29458845]
[1644635265778,0.0828955,42471.0,42470.0,0.29458845]
[1644635267578,0.25038761,42473.0,42470.0,0.29458845]
[1644635267879,0.25093647,42473.0,42470.0,0.29458845]
[1644635268124,0.25093647,42473.0,42471.0,0.0001]
[1644635268925,0.25062858,42473.0,42471.0,0.0001]
[1644635269927,0.25038761,42473.0,42471.0,0.0001]
[1644635270125,0.25062565,42473.0,42471.0,0.0001]
[1644635270625,0.06919313,42474.0,42471.0,0.0001]
[1644635270626,0.31649878,42474.0,42471.0,0.0001]
[1644635271129,0.25038761,42473.0,42471.0,0.0001]
[1644635271799,0.25038761,42474.0,42471.0,0.0001]
[1644635271981,0.00023821,42474.0,42471.0,0.0001]
[1644635272181,0.00054885,42475.0,42471.0,0.0001]
[1644635272481,0.25062582,42476.0,42471.0,0.0001]
[1644635272482,0.20027489,42473.0,42471.0,0.0001]
[1644635272681,0.20027489,42473.0,42472.0,0.071825]
[1644635272882,0.00023821,42473.0,42472.0,0.0001]
[1644635273083,0.20027489,42473.0,42471.0,0.0001]
[1644635273283,0.2005131,42473.0,42471.0,0.0001]
[1644635273483,0.19527489,42473.0,42471.0,0.0001]
[1644635274082,0.1955131,42473.0,42471.0,0.0001]
[1644635275085,0.19527489,42473.0,42471.0,0.0001]
[1644635275285,0.1955131,42473.0,42471.0,0.0001]
[1644635276228,0.19527489,42473.0,42471.0,0.0001]
[1644635276425,0.4355131,42473.0,42471.0,0.0001]
[1644635276625,0.4355131,42473.0,42472.0,0.071824]
[1644635276827,0.43527489,42473.0,42472.0,0.0001]
[1644635277026,0.43527489,42473.0,42472.0,0.071824]
[1644635277226,0.43527489,42473.0,42472.0,0.0001]
[1644635277426,0.43527489,42473.0,42472.0,0.071824]
[1644635277727,0.43527489,42473.0,42472.0,0.0001]
[1644635277926,0.43527489,42473.0,42472.0,0.071824]
[1644635278127,0.43527489,42473.0,42472.0,0.0001]
[1644635278327,0.43527489,42473.0,42471.0,0.0001]
[1644635279776,0.43527489,42473.0,42472.0,0.00113601]
[1644635279972,0.4355131,42473.0,42472.0,0.00113601]
[1644635280172,0.43527489,42473.0,42472.0,0.07296001]
[1644635280371,0.24,42473.0,42472.0,0.00123601]
[1644635280571,0.24,42473.0,42472.0,0.00113601]
[1644635284836,0.24,42473.0,42471.0,0.0001]
[1644635285034,0.24023821,42473.0,42471.0,0.0001]
[1644635286888,0.24023821,42473.0,42472.0,0.071824]
[1644635287089,0.24,42473.0,42472.0,0.0001]
[1644635287291,0.24,42473.0,42472.0,0.071824]
[1644635287489,0.24,42473.0,42472.0,0.0001]
[1644635287689,0.24,42473.0,42472.0,0.071824]
[1644635287890,0.24,42473.0,42472.0,0.0001]
[1644635288089,0.24,42473.0,42471.0,0.0001]
[1644635288290,0.24023821,42473.0,42471.0,0.0001]
[1644635289691,0.24023821,42473.0,42472.0,0.071824]
[1644635289892,0.24,42473.0,42472.0,0.071924]
[1644635290093,0.24,42473.0,42472.0,0.0001]
[1644635290293,0.24,42473.0,42472.0,0.00110526]
[1644635290530,0.24,42473.0,42472.0,0.07292926]
[1644635290731,0.24,42473.0,42472.0,0.00120526]
[1644635290930,0.24,42473.0,42472.0,0.07292926]
[1644635291130,0.24,42473.0,42472.0,0.00120526]
[1644635291330,0.24,42473.0,42472.0,0.00110526]
[1644635291331,0.44022851,42473.0,42472.0,0.00110526]
[1644635292735,0.44022851,42473.0,42472.0,0.07292926]
[1644635292933,0.44022851,42473.0,42472.0,0.00120526]
[1644635293233,0.44022851,42473.0,42472.0,0.00110526]
[1644635293435,0.24,42473.0,42472.0,0.07292926]
[1644635293633,0.24,42473.0,42472.0,0.00120526]
[1644635293834,0.24,42473.0,42472.0,0.07292926]
[1644635294133,0.24,42473.0,42472.0,0.00120526]
[1644635294379,0.24,42473.0,42472.0,0.00110526]
[1644635294577,0.24,42473.0,42470.0,0.29458845]
[1644635294776,0.20029093,42472.0,42471.0,0.071825]
[1644635295177,0.20029093,42472.0,42470.0,0.29458845]
[1644635295378,0.00023821,42472.0,42471.0,0.071827]
[1644635295677,0.49062582,42473.0,42470.0,0.29458845]
[1644635295877,0.20032246,42471.0,42470.0,0.29458845]
[1644635296981,0.20032246,42471.0,42470.0,0.36641745]
[1644635297279,0.20032246,42471.0,42470.0,0.29458845]
[1644635297482,0.20032246,42471.0,42470.0,0.36641845]
[1644635297679,0.20032246,42471.0,42470.0,0.29458845]
[1644635298125,0.20032246,42471.0,42470.0,0.36641845]
[1644635299330,0.00023821,42472.0,42470.0,0.36641845]
[1644635299531,0.49093724,42473.0,42471.0,0.071828]
[1644635299728,0.49093724,42473.0,42472.0,0.071925]
[1644635299929,0.49117545,42473.0,42472.0,0.0001]
[1644635300129,0.49038761,42473.0,42472.0,0.071824]
[1644635300330,0.24,42473.0,42472.0,0.071924]
[1644635300931,0.24,42473.0,42472.0,0.0001]
[1644635301129,0.24,42473.0,42471.0,0.0001]
[1644635301332,0.20033666,42472.0,42471.0,0.071926]
[1644635301529,0.24023821,42473.0,42471.0,0.071926]
[1644635301778,0.24023821,42473.0,42472.0,0.0001]
[1644635301978,0.24,42473.0,42471.0,0.0001]
[1644635302180,0.49062582,42473.0,42471.0,0.0001]
[1644635302379,0.49038761,42473.0,42471.0,0.0001]
[1644635302978,0.49062582,42473.0,42471.0,0.0001]
[1644635303981,0.49038761,42473.0,42471.0,0.0001]
[1644635304280,0.49062582,42473.0,42471.0,0.0001]
[1644635305083,0.00090971,42472.0,42471.0,0.0001]
[1644635305529,0.25129732,42472.0,42471.0,0.0001]
[1644635309275,0.25129732,42472.0,42471.0,0.071927]
[1644635309477,0.25129732,42472.0,42471.0,0.0001]
[1644635309775,0.25129732,42472.0,42471.0,0.071927]
[1644635309980,0.25129732,42472.0,42471.0,0.0001]
[1644635310175,0.25129732,42472.0,42471.0,0.071927]
[1644635310575,0.25129732,42472.0,42471.0,0.0001]
[1644635311676,0.25129732,42472.0,42471.0,0.071927]
[1644635311875,0.25129732,42472.0,42471.0,0.0001]
[1644635312277,0.25129732,42472.0,42471.0,0.071927]
[1644635317387,0.00090971,42472.0,42471.0,0.071927]
[1644635321631,0.00090971,42472.0,42471.0,0.0001]
[1644635321838,1.182e-05,42471.0,42470.0,0.29458845]
[1644635322039,0.30060102,42471.0,42470.0,0.29458845]
[1644635324887,0.27560102,42471.0,42470.0,0.29458845]
[1644635325489,0.27662328,42471.0,42470.0,0.29458845]
[1644635327089,0.27662328,42471.0,42470.0,0.29468845]
[1644635333488,0.27654816,42471.0,42470.0,0.29468845]
[1644635335393,0.2755259,42471.0,42470.0,0.29468845]
[1644635335642,0.26302933,42472.0,42470.0,0.29468845]
[1644635335845,0.26302933,42472.0,42471.0,0.0001]
[1644635336042,0.24022234,42472.0,42471.0,0.0001]
[1644635338451,0.24,42473.0,42471.0,0.0001]
[1644635338847,0.26338356,42472.0,42471.0,0.0001]
[1644635342887,0.56394289,42472.0,42471.0,0.0001]
[1644635348686,0.55894289,42472.0,42471.0,0.0001]
[1644635349288,0.25838356,42472.0,42471.0,0.0001]
[1644635349687,0.30838356,42472.0,42471.0,0.0001]
[1644635350087,0.65909113,42472.0,42471.0,0.0001]
[1644635350631,0.70909113,42472.0,42471.0,0.0001]
[1644635350831,0.80909113,42472.0,42471.0,0.0001]
[1644635352331,0.70342026,42472.0,42471.0,0.0001]
[1644635353537,0.058907,42469.0,42456.0,0.0005148]
[1644635353735,0.20038449,42460.0,42456.0,0.0005148]
[1644635354142,0.25183933,42458.0,42454.0,0.071876]
[1644635354385,0.25183933,42458.0,42451.0,0.24995536]
[1644635354386,0.45222382,42458.0,42456.0,0.00051469]
[1644635354584,0.35,42456.0,42455.0,0.00224537]
[1644635354786,0.35,42456.0,42452.0,0.00020323]
[1644635354986,0.35,42456.0,42450.0,0.20002907]
[1644635354987,0.35,42456.0,42451.0,0.00020323]
[1644635355185,0.35,42456.0,42450.0,0.00020323]
[1644635355385,0.35,42456.0,42449.0,0.20002907]
[1644635355585,0.35,42456.0,42448.0,0.00020323]
[1644635355586,0.35,42456.0,42448.0,0.2002323]
[1644635355787,0.35,42456.0,42448.0,0.20002907]
[1644635356791,0.35,42456.0,42450.0,0.0005151]
[1644635357587,0.33204836,42457.0,42450.0,0.0005151]
[1644635357788,0.33204836,42457.0,42449.0,0.00020323]
[1644635358043,0.33204836,42457.0,42451.0,0.0005151]
[1644635358841,0.33204836,42457.0,42448.0,0.00030323]
[1644635359041,0.33204836,42457.0,42452.0,0.0005151]
[1644635360042,0.25183933,42458.0,42452.0,0.00020323]
[1644635360243,0.39534322,42460.0,42452.0,0.0006147]
[1644635360444,0.39534322,42460.0,42452.0,0.00081793]
[1644635361245,0.07200561,42458.0,42452.0,0.00030323]
[1644635361447,0.07200561,42458.0,42454.0,0.00051469]
[1644635362289,0.26301899,42457.0,42454.0,0.00051469]
[1644635362486,0.26301899,42457.0,42452.0,0.00030323]
[1644635362687,0.26301899,42457.0,42453.0,0.00051469]
[1644635363688,0.26301899,42457.0,42452.0,0.00030323]
[1644635363892,0.26301899,42457.0,42453.0,0.00051472]
[1644635364090,0.20038449,42457.0,42453.0,0.00051472]
[1644635364289,0.20038449,42458.0,42453.0,0.00051472]
[1644635364489,0.25038449,42458.0,42453.0,0.00051472]
[1644635364691,0.24,42457.0,42453.0,0.00051472]
[1644635364891,0.23684231,42456.0,42455.0,0.00120298]
[1644635366139,0.53990721,42456.0,42455.0,0.00120298]
[1644635368941,0.65,42453.0,42427.0,0.14622278]
[1644635369150,0.65,42453.0,42418.0,0.93918644]
[1644635369151,0.05,42434.0,42430.0,0.5]
[1644635369392,0.15,42443.0,42421.0,0.0622]
[1644635369393,0.09932405,42431.0,42421.0,0.31242403]
[1644635369595,1.336482,42430.0,42421.0,0.0122]
[1644635369791,0.5919,42422.0,42421.0,0.0122]
[1644635369993,0.979472,42421.0,42416.0,0.07463132]
[1644635370192,0.05897,42420.0,42416.0,0.04164834]
[1644635370399,0.5919,42417.0,42416.0,0.01608618]
[1644635370590,0.1122,42417.0,42416.0,0.01608618]
[1644635370793,0.638972,42417.0,42416.0,0.01608618]
[1644635370989,0.3095,42417.0,42416.0,0.01608618]
[1644635371195,1.2095,42417.0,42416.0,0.01608618]
[1644635371392,1.1473,42417.0,42416.0,0.01608618]
[1644635372293,1.55211651,42417.0,42416.0,0.01608618]
[1644635373136,1.45211651,42417.0,42416.0,0.01608618]
[1644635373537,1.1473,42417.0,42416.0,0.01608618]
[1644635374337,1.41909276,42417.0,42416.0,0.01608618]
[1644635374639,0.51909276,42417.0,42416.0,0.01608618]
[1644635374839,0.67963387,42417.0,42416.0,0.01608618]
[1644635375240,0.51909276,42417.0,42416.0,0.01608618]
[1644635375738,0.75909276,42417.0,42416.0,0.01608618]
[1644635376800,0.87705476,42417.0,42416.0,0.01608618]
[1644635376992,2.03759587,42417.0,42416.0,0.01608618]
[1644635377193,2.03759587,42417.0,42416.0,1e-08]
[1644635377793,2.03759587,42417.0,42415.0,6.61e-06]
[1644635377996,0.87663988,42416.0,42415.0,6.61e-06]
[1644635378195,1.08174099,42416.0,42415.0,6.61e-06]
[1644635378395,1.18037099,42416.0,42415.0,6.61e-06]
[1644635378597,1.17967099,42416.0,42415.0,6.61e-06]
[1644635380201,1.17967099,42416.0,42414.0,0.0022]
[1644635380400,0.31197949,42415.0,42414.0,0.00214]
[1644635380632,1.0198206,42415.0,42414.0,0.00214]
[1644635380832,1.1198206,42415.0,42414.0,0.00214]
[1644635383133,0.6511,42414.0,42410.0,0.0011]
[1644635383335,0.6511,42414.0,42401.0,0.01]
[1644635383336,0.329472,42412.0,42401.0,0.01]
[1644635383535,0.329472,42410.0,42401.0,0.01]
[1644635383734,1.133782,42409.0,42401.0,0.01]
[1644635383935,1.233782,42409.0,42402.0,0.13]
[1644635384134,0.23619648,42408.0,42402.0,0.13]
[1644635384388,1.79050648,42408.0,42402.0,0.13]
[1644635384587,1.49050648,42408.0,42402.0,0.13]
[1644635384788,0.08614008,42393.0,42391.0,0.01]
[1644635384985,0.08538726,42393.0,42391.0,0.01]
[1644635385786,0.08538726,42393.0,42391.0,0.26752291]
[1644635386887,0.08538726,42393.0,42391.0,0.26772619]
[1644635387285,0.32538726,42393.0,42391.0,0.26772619]
[1644635387885,0.32538726,42393.0,42391.0,0.26752291]
[1644635388140,0.32538726,42393.0,42391.0,0.26772619]
[1644635389138,0.32538726,42393.0,42391.0,0.26752291]
[1644635389338,0.32538726,42393.0,42391.0,0.01020328]
[1644635389540,0.42538726,42393.0,42391.0,0.01020328]
[1644635390341,0.00084007,42392.0,42391.0,0.01]
[1644635393790,0.979472,42391.0,42390.0,0.00020328]
[1644635393988,0.979472,42391.0,42389.0,0.00054588]
[1644635393989,0.329472,42390.0,42389.0,0.00054588]
[1644635394388,0.1,42390.0,42389.0,0.00054588]
[1644635394891,0.1,42390.0,42387.0,0.00020328]
[1644635395190,0.1,42390.0,42387.0,0.00054589]
[1644635395388,0.00084007,42392.0,42387.0,0.00074917]
[1644635395636,0.00174682,42392.0,42387.0,0.00074917]
[1644635396236,0.00174682,42392.0,42385.0,0.24558979]
[1644635396237,0.00174682,42392.0,42386.0,0.00020328]
[1644635396437,0.00174682,42392.0,42387.0,0.00054589]
[1644635396937,0.00174682,42392.0,42387.0,0.00074917]
[1644635397239,0.06074487,42392.0,42387.0,0.00074917]
[1644635397436,0.00174682,42392.0,42387.0,0.00020328]
[1644635397637,0.00174682,42392.0,42387.0,0.00054589]
[1644635397838,0.00174682,42392.0,42387.0,0.00074917]
[1644635398646,0.00174682,42392.0,42387.0,0.00020328]
[1644635398840,0.00174682,42392.0,42387.0,0.00074712]
[1644635399041,0.32564049,42392.0,42387.0,0.00074712]
[1644635399297,0.10174682,42392.0,42387.0,0.00074712]
[1644635399689,0.10174682,42392.0,42387.0,0.00020328]
[1644635399889,0.10174682,42392.0,42387.0,0.00054384]
[1644635400088,0.10174682,42392.0,42387.0,0.00074712]
[1644635400489,0.00174682,42392.0,42387.0,0.00074712]
[1644635400890,0.00174682,42392.0,42387.0,0.00020328]
[1644635401091,0.00174682,42392.0,42387.0,0.00052509]
[1644635401293,0.00174682,42392.0,42387.0,0.00072837]
[1644635401691,0.00174682,42392.0,42385.0,0.3296531]
[1644635402394,0.00174682,42392.0,42390.0,0.05]
[1644635402601,0.00086361,42392.0,42391.0,0.0473]
[1644635402794,0.32538726,42393.0,42392.0,0.65]
[1644635403041,0.32538726,42393.0,42392.0,0.92530294]
[1644635403241,0.32538726,42393.0,42392.0,1.26068286]
[1644635404341,0.32538726,42393.0,42392.0,1.17407218]
[1644635405140,0.32538726,42393.0,42392.0,0.52407218]
[1644635405741,0.32538726,42393.0,42392.0,0.59678676]
[1644635406347,0.32538726,42393.0,42392.0,0.89997478]
[1644635407388,0.32538726,42393.0,42392.0,0.89497478]
[1644635408189,0.32538726,42393.0,42392.0,0.8222602]
[1644635410751,0.32789229,42393.0,42392.0,0.8222602]
[1644635412352,9.32789229,42393.0,42392.0,0.8222602]
[1644635412752,9.32789229,42393.0,42392.0,0.57349096]
[1644635412952,9.32789229,42393.0,42392.0,0.27030294]
[1644635413354,9.32789229,42393.0,42392.0,0.0423]
[1644635413755,9.32789229,42393.0,42388.0,0.11796]
[1644635413953,9.32789229,42393.0,42385.0,0.18934595]
[1644635414156,9.32789229,42393.0,42385.0,0.0473]
[1644635414157,0.27104574,42392.0,42385.0,0.0473]
[1644635414388,0.27104574,42392.0,42385.0,0.00054593]
[1644635414987,9.42789229,42393.0,42385.0,0.00054593]
[1644635415486,9.42789229,42393.0,42385.0,0.00054592]
[1644635416088,9.32789229,42393.0,42385.0,0.00054592]
[1644635416288,0.27211511,42392.0,42385.0,0.00054592]